bitfinex/quotes_ETHUSD_20240926
["timestamp","ask_amount","ask_price","bid_price","bid_amount"]
[1727353932379,3.78978,2638.7,2637.8,3.79092]
[1727353932380,3.78984,2638.7,2637.8,3.79092]
[1727353932547,3.78984,2638.7,2637.9,3.7908]
[1727353932548,3.79014,2638.5,2637.9,3.7908]
[1727353932746,3.79014,2638.5,2637.8,7.58184]
[1727353933053,4.33991,2638.6,2638.0,3.79073]
[1727353933643,3.79012,2638.5,2637.6,3.79123]
[1727353933840,0.55,2638.4,2637.8,3.79091]
[1727353934049,0.984012,2638.4,2637.3,0.8045]
[1727353934252,3.79075,2638.0,2637.4,3.7915]
[1727353934445,0.55,2638.5,2637.4,3.7915]
[1727353934446,3.79072,2638.1,2637.4,3.7915]
[1727353934671,3.79072,2638.1,2637.4,4.55539664]
[1727353934875,3.79072,2638.1,2637.4,0.76389664]
[1727353935080,7.58144,2638.1,2637.4,4.55541664]
[1727353935287,3.79072,2638.1,2637.4,0.76389664]
[1727353935438,3.79072,2638.1,2637.2,3.8474564]
[1727353935439,3.79107,2637.8,2637.2,0.0556364]
[1727353935780,0.55,2637.5,2637.2,0.0556364]
[1727353936282,3.379107,2637.8,2637.2,0.0556364]
[1727353936283,4.34175,2637.3,2637.2,0.0556364]
[1727353936570,7.34175,2637.3,2637.2,0.0556364]
[1727353937478,7.34175,2637.3,2636.1,0.0556364]
[1727353937479,3.79297,2636.5,2636.1,0.0556364]
[1727353937691,3.79276,2636.6,2636.1,0.0556364]
[1727353937848,3.79249,2636.8,2636.1,0.0556364]
[1727353938234,3.79264,2636.7,2636.1,3.8490364]
[1727353938386,0.55,2637.2,2636.1,0.0556364]
[1727353938593,3.79193,2637.2,2636.5,3.79276]
[1727353938914,4.34184,2637.3,2636.5,3.79276]
[1727353939040,0.434184,2637.2,2636.5,3.79276]
[1727353939399,0.434184,2637.2,2636.1,0.0556364]
[1727353939400,3.79212,2637.1,2636.2,3.79331]
[1727353939556,3.79212,2637.1,2636.1,0.0556364]
[1727353939557,0.55,2637.0,2636.1,0.0556364]
[1727353939879,3.79153,2637.5,2636.5,3.79288]
[1727353939880,0.55,2637.2,2636.5,3.79288]
[1727353940075,10.58367,2637.3,2636.5,3.7929]
[1727353940281,0.55,2637.2,2636.5,3.7929]
[1727353940439,4.34192,2637.2,2636.5,3.7929]
[1727353940846,3.79208,2637.1,2636.4,3.79293]
[1727353941275,3.79208,2637.1,2636.3,3.79306]
[1727353941587,0.55,2637.2,2636.1,0.0556364]
[1727353941588,0.434208,2637.0,2636.1,0.0556364]
[1727353941785,3.79286,2636.6,2636.1,0.0556364]
[1727353942044,3.79313,2636.4,2636.1,0.0556364]
[1727353942478,3.79321,2636.3,2636.1,0.0556364]
[1727353942900,3.79333,2636.2,2636.1,0.0556364]
[1727353944017,4.34333,2636.2,2636.1,0.0556364]
[1727353944324,7.34333,2636.2,2636.1,0.0556364]
[1727353944489,7.34333,2636.2,2634.9,0.0556364]
[1727353944490,3.79479,2635.2,2634.9,0.0556364]
[1727353944671,3.0,2636.1,2634.9,0.0556364]
[1727353944672,3.0,2635.7,2634.9,0.0556364]
[1727353944891,3.79458,2635.4,2634.9,0.0556364]
[1727353945114,3.7948,2635.2,2634.9,0.0556364]
[1727353945475,3.79506,2635.0,2634.9,0.0556364]
[1727353945669,4.34506,2635.0,2634.9,0.0556364]
[1727353945878,3.0,2635.7,2634.9,0.0221068]
[1727353945879,3.55,2635.3,2634.9,0.0221068]
[1727353946174,3.79479,2635.2,2634.9,0.0221068]
[1727353946375,4.34506,2635.0,2634.9,0.0221068]
[1727353946811,7.34504,2635.1,2634.9,0.0221068]
[1727353946983,6.79506,2635.0,2634.9,0.0221068]
[1727353947172,8.459045,2635.0,2634.9,0.0221068]
[1727353947973,6.79506,2635.0,2634.9,0.0221068]
[1727353948174,3.0,2635.2,2634.9,0.0221068]
[1727353948529,5.79339,2636.2,2635.3,0.7776]
[1727353948530,3.79345,2636.2,2635.3,0.7776]
[1727353948739,3.79345,2636.2,2635.5,3.79433]
[1727353949036,3.79292,2636.5,2635.5,3.8164368]
[1727353949184,3.79337,2636.2,2635.5,0.0221068]
[1727353949388,3.79337,2636.2,2635.5,3.8164368]
[1727353949714,3.79324,2636.3,2635.5,3.8164368]
[1727353950011,3.79324,2636.3,2635.5,0.0221068]
[1727353950012,3.79352,2636.1,2635.5,0.0221068]
[1727353950177,3.79364,2636.0,2635.5,0.0221068]
[1727353950520,4.0965452,2636.3,2635.5,3.8164268]
[1727353950674,3.0,2636.4,2635.5,0.0221068]
[1727353950871,3.79306,2636.4,2635.5,0.0221068]
[1727353951076,3.7925,2636.8,2635.9,3.79376]
[1727353951271,3.79176,2637.3,2636.0,0.8045]
[1727353951272,3.79179,2637.3,2636.0,0.8045]
[1727353951522,3.79219,2637.0,2636.2,3.7932]
[1727353951729,50.5,2636.9,2636.2,3.7932]
[1727353951935,3.79265,2636.7,2636.0,0.8045]
[1727353952221,0.379179,2637.2,2635.6,0.7811]
[1727353952222,3.81628408,2636.8,2635.6,0.7811]
[1727353952389,3.79313,2636.4,2635.6,0.7811]
[1727353952594,3.79337,2636.2,2635.6,0.7811]
[1727353953104,3.79337,2636.2,2635.6,4.57528]
[1727353953349,6.79313,2636.4,2635.6,4.57529]
[1727353953550,7.34322,2636.3,2635.6,4.57529]
[1727353953841,7.34322,2636.3,2635.6,0.70322427]
[1727353954214,3.55,2636.3,2635.6,0.70322427]
[1727353954421,3.79335,2636.2,2635.6,4.49742427]
[1727353954724,3.7935,2636.1,2635.6,0.70322427]
[1727353955101,3.79335,2636.2,2635.6,0.70322427]
[1727353955298,3.79335,2636.2,2635.5,0.0221068]
[1727353955299,3.7939,2635.9,2635.5,0.0221068]
[1727353955734,3.79358,2636.1,2635.5,0.0221068]
[1727353955949,4.98750463,2636.1,2635.5,0.0221068]
[1727353956155,3.79365,2636.0,2635.5,0.0221068]
[1727353956818,3.79338,2636.2,2635.5,0.7816068]
[1727353957045,3.79338,2636.2,2635.6,3.7941]
[1727353957218,3.79283,2636.6,2635.8,3.79389]
[1727353957534,0.0779,2637.0,2635.8,3.79384]
[1727353957847,0.0779,2637.0,2636.2,3.7933]
[1727353957848,3.79258,2636.8,2636.2,3.7933]
[1727353958143,3.79258,2636.8,2636.0,3.7935]
[1727353958444,3.79258,2636.8,2635.9,3.79366]
[1727353958445,3.7928,2636.6,2635.9,3.79366]
[1727353958630,3.79315,2636.4,2635.8,7.58764]
[1727353958950,3.79326,2636.3,2635.5,0.7816068]
[1727353959104,3.79357,2636.1,2635.5,4.5759368]
[1727353959302,3.79367,2636.0,2635.5,0.7816068]
[1727353959504,4.171958,2636.7,2635.5,0.7816068]
[1727353959505,3.79403,2635.8,2635.5,0.0221068]
[1727353959740,3.79379,2635.9,2635.5,0.0221068]
[1727353959942,0.4171958,2636.6,2635.5,0.0221068]
[1727353959943,3.79244,2636.9,2636.0,3.79349]
[1727353960156,0.0779,2637.1,2636.5,3.79276]
[1727353960157,3.79212,2637.1,2636.5,3.79276]
[1727353960309,3.7918,2637.3,2636.5,3.79276]
[1727353960310,3.7918,2637.3,2636.7,3.7925]
[1727353960511,3.7918,2637.3,2636.9,3.79223]
[1727353960512,0.766124,2637.3,2636.9,3.79223]
[1727353960745,3.79143,2637.6,2637.0,3.79208]
[1727353960953,3.79143,2637.6,2636.9,3.79223]
[1727353960954,3.79161,2637.4,2636.9,3.79223]
[1727353961251,3.79161,2637.4,2636.7,3.79253]
[1727353961252,3.79169,2637.4,2636.8,3.79237]
[1727353961468,0.7962396,2637.4,2636.5,3.79284]
[1727353961748,0.379126,2637.6,2636.5,3.79284]
[1727353961749,3.79219,2637.0,2636.5,3.79284]
[1727353962047,3.79219,2637.0,2636.4,0.7577]
[1727353962243,3.79221,2637.0,2636.4,0.7577]
[1727353962458,3.79256,2636.8,2636.4,0.7577]
[1727353962656,4.171531,2637.0,2636.4,0.7577]
[1727353962657,0.379221,2637.0,2636.4,4.55067]
[1727353962836,3.7922,2637.0,2636.4,4.55067]
[1727353963148,3.0,2637.1,2636.5,3.79289]
[1727353963376,6.79212,2637.1,2636.5,3.79289]
[1727353963940,3.79218,2637.0,2636.4,4.55067]
[1727353964180,3.79257,2636.8,2636.4,0.7577]
[1727353964338,3.79225,2637.0,2636.4,0.7577]
[1727353964685,3.0,2637.3,2636.4,0.7577]
[1727353964686,3.79256,2636.8,2636.4,0.7577]
[1727353965562,3.79199,2637.2,2636.4,4.55066]
[1727353965761,3.355,2637.2,2636.6,3.79264]
[1727353965979,3.79143,2637.6,2636.7,0.0758523]
[1727353966143,2.0,2638.5,2636.4,0.7577]
[1727353966144,3.79155,2637.5,2637.0,3.7921]
[1727353966635,7.58283,2637.6,2636.8,3.79239]
[1727353966836,7.5828,2637.6,2637.1,3.792]
[1727353967073,4.255697,2637.9,2636.4,0.7577]
[1727353967282,3.79211,2637.1,2636.4,0.7577]
[1727353967439,0.08694912,2637.8,2636.4,0.7577]
[1727353967440,3.79274,2636.7,2636.4,0.7577]
[1727353968181,3.79273,2636.7,2636.4,0.7577]
[1727353968405,3.79242,2636.9,2636.4,0.7577]
[1727353968609,4.171661,2636.9,2636.4,4.55072]
[1727353968766,4.171651,2636.9,2636.4,0.7577]
[1727353969305,4.171651,2636.9,2636.4,4.55061]
[1727353969709,3.79248,2636.8,2636.4,0.7577]
[1727353969927,3.79287,2636.6,2636.0,3.79357]
[1727353970215,0.55,2636.6,2636.0,0.769]
[1727353970403,3.79305,2636.4,2636.0,0.769]
[1727353970782,3.793,2636.5,2636.0,0.769]
[1727353970998,3.79327,2636.3,2636.0,0.769]
[1727353971372,0.4343,2636.5,2636.0,0.769]
[1727353971584,3.79308,2636.4,2636.0,0.769]
[1727353971771,3.79336,2636.2,2636.0,0.769]
[1727353971969,3.79405,2635.7,2635.5,0.0221068]
[1727353972214,3.7942,2635.6,2635.5,0.0221068]
[1727353972926,3.0,2636.4,2635.5,0.0221068]
[1727353972927,3.79356,2636.1,2635.5,0.0221068]
[1727353973110,3.0,2636.2,2635.7,3.79405]
[1727353973310,6.79342,2636.2,2635.5,3.8163468]
[1727353973474,3.79388,2635.9,2635.5,0.0221068]
[1727353973783,3.79406,2635.7,2635.5,0.0221068]
[1727353973986,3.79388,2635.9,2635.5,0.0221068]
[1727353973987,3.79386,2635.9,2635.5,0.0221068]
[1727353974308,0.979328,2636.2,2635.5,0.0221068]
[1727353974550,3.79371,2636.0,2635.5,0.0221068]
[1727353974674,3.79371,2636.0,2635.5,3.8163268]
[1727353974875,7.58745,2636.0,2635.5,0.0221068]
[1727353975183,3.79371,2636.0,2635.5,0.0221068]
[1727353975512,3.7938,2635.9,2635.5,0.0221068]
[1727353975710,3.794,2635.8,2635.5,0.0221068]
[1727353975912,3.79386,2635.9,2635.5,0.0221068]
[1727353976818,3.79413,2635.7,2635.5,0.0221068]
[1727353977124,7.58775,2635.9,2635.5,0.0221068]
[1727353977305,3.79372,2636.0,2635.5,0.0221068]
[1727353977620,6.79363,2636.0,2635.5,3.8164368]
[1727353977822,3.79328,2636.3,2635.7,0.7936]
[1727353978150,3.7933,2636.3,2635.7,4.58756]
[1727353978284,3.79348,2636.1,2635.7,4.58756]
[1727353978618,3.79363,2636.0,2635.7,0.7936]
[1727353978804,3.79343,2636.2,2635.7,0.7936]
[1727353979008,3.79343,2636.2,2635.8,3.79391]
[1727353979306,3.79265,2636.7,2636.1,3.79337]
[1727353979307,3.79262,2636.7,2636.1,3.79337]
[1727353979502,3.79249,2636.8,2636.1,3.7934]
[1727353979754,0.0779,2637.0,2635.7,4.58762]
[1727353979898,0.0779,2637.0,2636.0,3.7936]
[1727353979899,3.79286,2636.6,2636.0,3.7936]
[1727353980094,3.79286,2636.6,2636.0,7.5871]
[1727353980335,3.79284,2636.6,2635.9,3.79375]
[1727353980540,3.79321,2636.3,2635.8,3.79383]
[1727353980906,3.79346,2636.2,2635.7,4.58764]
[1727353981106,3.87012,2637.0,2635.7,0.7936]
[1727353981107,3.79363,2636.0,2635.7,0.7936]
[1727353981636,3.79363,2636.0,2635.5,3.8163368]
[1727353981637,3.79391,2635.8,2635.5,0.0221068]
[1727353981855,6.79287,2636.6,2635.5,0.55645071]
[1727353982058,7.5468637,2637.8,2636.3,0.768]
[1727353982059,3.0,2636.9,2636.3,0.768]
[1727353982196,6.79246,2636.9,2636.3,4.56119]
[1727353982403,3.0,2636.7,2636.3,0.768]
[1727353982599,3.79305,2636.4,2635.9,0.8242]
[1727353982812,3.79285,2636.6,2635.9,4.61789]
[1727353982813,3.79291,2636.5,2635.9,4.61789]
[1727353983013,3.0,2636.7,2635.9,0.8242]
[1727353983014,3.79335,2636.2,2635.9,0.8242]
[1727353983543,3.79313,2636.4,2635.9,0.8242]
[1727353984040,3.79341,2636.2,2635.9,0.8242]
[1727353984245,3.79341,2636.2,2635.6,0.7971]
[1727353984246,3.79335,2636.2,2635.6,0.7971]
[1727353984454,0.379313,2636.4,2635.9,3.79368]
[1727353984455,3.0,2636.4,2635.9,3.79368]
[1727353984759,3.0,2636.6,2636.1,3.79339]
[1727353984907,3.7921,2637.1,2636.3,0.7971]
[1727353985101,3.79118,2637.7,2636.4,3.86884794]
[1727353985102,3.79159,2637.5,2636.4,3.86884794]
[1727353985325,3.79157,2637.5,2636.9,3.79219]
[1727353985546,0.70495696,2637.6,2636.9,3.79219]
[1727353985547,0.70495696,2637.6,2637.1,3.79201]
[1727353985711,3.7912,2637.7,2637.0,0.7971]
[1727353985712,3.79155,2637.5,2637.0,0.7971]
[1727353985908,3.79126,2637.7,2637.0,0.7971]
[1727353986112,0.08694912,2637.8,2637.4,3.7915]
[1727353986838,0.08694912,2637.8,2637.2,3.79181]
[1727353987014,3.87810912,2637.8,2637.3,3.79175]
[1727353987416,3.87810912,2637.8,2637.4,3.79148]
[1727353987417,0.08694912,2637.8,2637.4,3.79148]
[1727353987637,0.08694912,2637.8,2637.5,3.79144]
[1727353988054,8.16696282,2638.8,2637.6,0.7568]
[1727353988055,3.78996,2638.6,2637.6,0.7568]
[1727353988215,4.176746,2638.6,2637.9,3.79076]
[1727353988405,4.176746,2638.6,2638.0,3.79074]
[1727353988600,4.176746,2638.6,2637.6,0.7568]
[1727353988601,0.386786,2638.6,2637.6,0.7568]
[1727353988918,0.0779,2638.8,2637.7,3.79108]
[1727353989119,3.79041,2638.3,2637.7,3.7911]
[1727353989430,0.0779,2638.8,2637.9,3.79078]
[1727353989431,3.79005,2638.5,2637.9,3.79078]
[1727353989737,0.0779,2638.8,2637.7,3.79109]
[1727353989738,3.79044,2638.3,2637.7,3.79109]
[1727353990155,3.79134,2637.6,2637.3,0.7527]
[1727353990455,3.7918,2637.3,2636.9,0.8163]
[1727353990604,0.55,2637.8,2636.9,0.8163]
[1727353990803,3.79218,2637.0,2636.4,0.8163]
[1727353991061,3.79249,2636.8,2636.4,0.8163]
[1727353991207,0.0779,2637.3,2635.5,0.8384068]
[1727353991208,3.79292,2636.5,2635.5,0.8384068]
[1727353991408,0.11225244,2636.7,2636.0,3.79353]
[1727353991646,0.0342171,2636.4,2636.0,3.79353]
[1727353991950,0.0779,2636.7,2635.9,3.79371]
[1727353991951,3.79293,2636.5,2635.9,3.79371]
[1727353992153,3.79293,2636.5,2635.9,4.173081]
[1727353992356,3.79293,2636.5,2635.9,7.966751]
[1727353992643,3.87061,2636.7,2635.9,4.173041]
[1727353992818,4.257673,2636.7,2635.9,4.173041]
[1727353993201,4.257673,2636.7,2635.6,3.7941]
[1727353993202,3.79302,2636.5,2635.6,3.7941]
[1727353993405,3.79356,2636.1,2635.5,0.8384068]
[1727353993647,6.79281,2636.6,2635.5,0.8384068]
[1727353993648,3.0,2636.6,2635.5,0.8384068]
[1727353993817,0.464963,2636.7,2635.5,0.8384068]
[1727353993818,3.79386,2635.9,2635.5,0.0221068]
[1727353994002,3.79312,2636.4,2635.5,0.0221068]
[1727353994003,3.7942,2635.6,2635.5,0.0221068]
[1727353994206,3.79406,2635.7,2635.5,0.0221068]
[1727353994756,6.82992414,2635.6,2635.5,0.0221068]
[1727353994962,7.95413673,2635.6,2635.5,0.0221068]
[1727353995406,3.7938,2635.9,2635.5,0.0221068]
[1727353995731,0.0779,2636.0,2635.5,0.0221068]
[1727353995732,3.7941,2635.7,2635.5,0.0221068]
[1727353995917,3.7942,2635.6,2635.5,0.0221068]
[1727353996123,7.58829,2635.7,2635.5,0.0221068]
[1727353996445,3.7942,2635.6,2635.5,0.0221068]
[1727353996647,3.88769685,2635.6,2635.5,0.0221068]
[1727353996819,6.88769685,2635.6,2635.5,0.0221068]
[1727353997346,7.51559685,2635.6,2635.5,0.0221068]
[1727353998047,6.96559685,2635.6,2635.5,0.0221068]
[1727353998248,8.69744944,2635.6,2635.5,0.0221068]
[1727353998497,8.69744944,2635.6,2633.9,0.905916]
[1727353998498,3.79592,2634.5,2633.9,0.905916]
[1727353998671,3.79617,2634.3,2633.9,0.905916]
[1727353998948,3.79584,2634.5,2633.9,0.905916]
[1727353999261,0.0779,2634.7,2633.9,0.075116]
[1727353999262,3.7965,2634.0,2633.9,0.075116]
[1727353999414,0.379584,2634.4,2633.9,0.075116]
[1727353999415,3.79597,2634.4,2633.9,0.075116]
[1727353999610,3.79609,2634.3,2633.9,0.075116]
[1727353999815,3.79622,2634.2,2633.9,0.075116]
[1727354000119,6.79568,2634.6,2633.9,0.075116]
[1727354000323,3.79614,2634.3,2633.9,0.075116]
[1727354000561,3.79567,2634.6,2633.9,0.075116]
[1727354000909,3.79567,2634.6,2633.9,0.5413606]
[1727354001213,2.0,2635.4,2634.2,3.7962]
[1727354001214,6.79515,2635.0,2634.2,3.7962]
[1727354001445,3.87241,2635.4,2634.1,3.79633]
[1727354001446,6.79538,2634.8,2634.1,3.79633]
[1727354001649,0.48848332,2635.6,2634.8,3.79523]
[1727354001858,0.48848332,2635.6,2634.7,3.79549]
[1727354001859,3.79437,2635.5,2634.7,3.79549]
[1727354002018,3.7945,2635.4,2634.7,3.79549]
[1727354002228,0.18044597,2635.6,2634.7,3.79549]
[1727354002566,0.18044597,2635.6,2635.0,3.79503]
[1727354002868,0.18044597,2635.6,2634.8,0.7937]
[1727354002869,0.18044597,2635.6,2635.1,3.7948]
[1727354003169,0.18044597,2635.6,2635.3,3.79451]
[1727354003866,0.18044597,2635.6,2635.1,3.7948]
[1727354004166,0.18044597,2635.6,2634.8,4.58903]
[1727354004461,3.97465597,2635.6,2634.8,4.58895]
[1727354004670,4.37221157,2635.6,2634.8,0.7937]
[1727354004826,3.97474597,2635.6,2634.9,3.79519]
[1727354005350,3.97474597,2635.6,2635.0,3.79505]
[1727354005664,0.18044597,2635.6,2635.1,3.79491]
[1727354005875,0.18044597,2635.6,2635.2,3.79476]
[1727354006224,0.18044597,2635.6,2635.1,0.758996]
[1727354006467,0.18044597,2635.6,2635.0,3.79495]
[1727354006669,0.18044597,2635.6,2635.1,3.7949]
[1727354007026,0.18044597,2635.6,2635.0,3.8298716]
[1727354007228,0.18044597,2635.6,2635.2,3.79464]
[1727354007427,0.18044597,2635.6,2635.2,7.58931]
[1727354007629,0.18044597,2635.6,2635.3,3.79456]
[1727354007824,0.18044597,2635.6,2635.4,3.79448]
[1727354008078,0.18044597,2635.6,2635.4,4.553322]
[1727354008285,0.18044597,2635.6,2635.4,3.79441]
[1727354008447,0.18044597,2635.6,2635.5,0.823]
[1727354008649,0.18044597,2635.6,2635.5,4.61734]
[1727354008650,0.09349685,2635.6,2635.5,4.61734]
[1727354009033,0.09349685,2635.6,2635.5,5.24321879]
[1727354009345,0.1714,2637.3,2636.5,3.79277]
[1727354009670,3.7922,2637.0,2636.4,3.79304]
[1727354010183,3.79192,2637.2,2636.6,3.79265]
[1727354010356,3.79192,2637.2,2636.5,3.79288]
[1727354010357,3.79166,2637.4,2636.5,3.79283]
[1727354010675,3.79166,2637.4,2636.7,3.79259]
[1727354010882,3.79182,2637.3,2636.7,3.79252]
[1727354011548,3.7917,2637.4,2636.5,3.79277]
[1727354011865,6.96275,2637.6,2636.5,3.79277]
[1727354012038,3.79201,2637.2,2636.3,8.37797]
[1727354012231,7.04969912,2637.6,2636.3,8.37797]
[1727354012232,3.79223,2637.0,2636.4,3.79303]
[1727354012472,7.5845,2637.0,2636.3,4.58486]
[1727354012777,3.79236,2636.9,2636.3,4.58486]
[1727354012959,3.79255,2636.8,2636.3,0.7918]
[1727354013429,3.79255,2636.8,2636.3,4.58495]
[1727354013637,3.79262,2636.7,2636.3,0.7918]
[1727354013841,3.79262,2636.7,2636.1,3.79338]
[1727354014038,3.79276,2636.6,2636.1,3.79338]
[1727354014276,3.79291,2636.5,2636.0,0.8031]
[1727354014477,4.551448,2636.5,2636.0,0.8031]
[1727354014658,3.79271,2636.7,2636.0,0.8031]
[1727354014837,3.79271,2636.7,2636.2,3.79332]
[1727354015160,3.0,2637.1,2636.4,3.79291]
[1727354015363,0.696331,2637.1,2636.0,0.8031]
[1727354015663,0.696331,2637.1,2636.7,3.79259]
[1727354015867,4.488391,2637.1,2636.5,7.58568]
[1727354016045,3.4488391,2637.0,2636.5,3.79282]
[1727354016239,3.4488391,2637.0,2636.6,3.79266]
[1727354016443,0.4488391,2637.0,2636.5,3.79281]
[1727354016630,4.488391,2637.1,2636.5,3.79281]
[1727354017337,4.488391,2637.1,2636.6,3.79274]
[1727354017530,0.696331,2637.1,2636.2,0.07585599]
[1727354017735,3.79161,2637.4,2636.9,3.79231]
[1727354017977,3.79156,2637.5,2636.4,0.3802]
[1727354017978,3.79184,2637.3,2636.7,3.7925]
[1727354018285,4.550178,2637.3,2636.8,3.7924]
[1727354018435,3.79154,2637.5,2636.9,3.79223]
[1727354018635,3.79154,2637.5,2637.1,3.79202]
[1727354018833,0.25834912,2637.6,2637.1,3.79194]
[1727354019039,0.08694912,2637.6,2637.1,3.79194]
[1727354019240,0.08694912,2637.6,2637.2,3.79181]
[1727354019537,0.08694912,2637.6,2637.1,3.79194]
[1727354019538,3.87826912,2637.6,2637.1,3.79194]
[1727354019868,3.08694912,2637.6,2637.3,3.79175]
[1727354020036,3.77477003,2637.6,2637.3,3.79175]
[1727354020232,3.77477003,2637.6,2637.2,3.79189]
[1727354020438,7.56609003,2637.6,2637.1,3.79203]
[1727354021375,3.79183,2637.3,2637.0,0.831]
[1727354021577,3.79183,2637.3,2636.7,7.58502]
[1727354021578,0.08694912,2637.6,2636.7,0.814]
[1727354021867,3.79202,2637.2,2636.7,4.60653]
[1727354022532,7.58361,2637.3,2636.7,4.60651]
[1727354022836,3.79191,2637.2,2636.7,8.39905]
[1727354023769,3.79205,2637.1,2636.7,4.60651]
[1727354023978,0.379177,2637.2,2636.7,4.60651]
[1727354024148,0.379177,2637.2,2636.8,3.79246]
[1727354024349,3.79207,2637.1,2636.7,0.814]
[1727354024549,3.79239,2636.9,2636.4,3.79296]
[1727354024760,3.79262,2636.7,2636.3,0.7601]
[1727354025084,3.79262,2636.7,2636.3,4.55327]
[1727354025466,3.79262,2636.7,2636.3,0.7601]
[1727354026059,3.79262,2636.7,2636.3,4.55327]
[1727354026265,0.550577,2637.2,2636.3,0.7601]
[1727354026491,3.79213,2637.1,2636.6,3.79274]
[1727354026648,3.79232,2637.0,2636.4,3.79297]
[1727354027005,3.79243,2636.9,2636.1,0.79]
[1727354027279,0.1714,2637.2,2636.1,0.79]
[1727354027280,3.79219,2637.0,2636.5,3.7928]
[1727354027489,3.79212,2637.1,2636.5,3.7928]
[1727354027490,7.58425,2637.1,2636.6,3.79272]
[1727354027645,3.79227,2637.0,2636.5,3.7928]
[1727354028643,3.79227,2637.0,2636.5,7.58564]
[1727354028884,3.79227,2637.0,2636.5,3.7928]
[1727354029499,3.79152,2637.5,2636.5,3.7928]
[1727354029500,0.1714,2637.5,2636.6,0.8163]
[1727354029644,3.79147,2637.5,2637.0,7.58421]
[1727354029987,0.08694912,2637.6,2637.1,3.79191]
[1727354030142,3.79169,2637.4,2636.9,3.79228]
[1727354030342,0.38786391,2637.4,2636.6,0.8163]
[1727354030670,3.79211,2637.1,2636.6,4.60901]
[1727354031044,7.58426,2637.1,2636.6,4.60901]
[1727354031246,0.1714,2637.2,2636.7,3.79258]
[1727354031475,3.96333,2637.2,2636.7,3.79258]
[1727354031695,3.79172,2637.4,2636.9,3.79231]
[1727354031871,3.79172,2637.4,2636.7,3.79261]
[1727354031872,3.79192,2637.2,2636.7,3.79261]
[1727354032073,3.79206,2637.1,2636.7,3.79261]
[1727354032298,7.58394,2637.2,2636.7,3.79261]
[1727354032512,4.171102,2637.2,2636.3,0.7597]
[1727354032689,3.79271,2636.7,2636.2,3.79329]
[1727354033026,3.79269,2636.7,2636.2,0.8842741]
[1727354033174,3.79269,2636.7,2636.2,4.6775441]
[1727354033175,7.58542,2636.7,2636.2,4.6775441]
[1727354033373,3.79282,2636.6,2636.2,0.8842741]
[1727354033582,7.5854,2636.7,2636.1,3.79338]
[1727354034015,3.79269,2636.7,2636.2,3.79328]
[1727354034190,3.79269,2636.7,2636.3,3.79319]
[1727354034385,3.79269,2636.7,2636.1,3.79338]
[1727354034386,7.58541,2636.7,2636.2,3.79331]
[1727354034588,3.79269,2636.7,2636.2,3.79331]
[1727354034909,7.3805602,2637.1,2636.0,3.79361]
[1727354035117,7.3805602,2637.1,2636.0,3.79353]
[1727354035118,3.79272,2636.7,2636.0,3.79353]
[1727354035321,3.0,2636.8,2636.4,3.793]
[1727354035487,3.0,2636.9,2636.6,3.79274]
[1727354035815,3.0,2636.9,2636.4,4.6009]
[1727354035816,6.87913912,2637.0,2636.5,4.1722]
[1727354035975,3.08694912,2637.0,2636.5,4.1722]
[1727354036429,3.08694912,2637.0,2636.6,0.49801]
[1727354036724,3.79254,2636.8,2636.4,0.8079]
[1727354036891,3.79275,2636.7,2636.1,4.57864]
[1727354037076,3.79241,2636.9,2636.4,3.79298]
[1727354038531,3.79241,2636.9,2636.2,4.251184]
[1727354038730,3.79262,2636.7,2636.1,4.57878]
[1727354038910,3.79321,2636.3,2635.8,4.62412]
[1727354039081,7.58593,2636.5,2636.0,3.79361]
[1727354039278,0.05219059,2636.2,2635.8,5.086492]
[1727354039514,3.79324,2636.3,2635.6,3.79409]
[1727354039719,3.79324,2636.3,2635.0,0.0349216]
[1727354039720,3.79335,2636.2,2635.7,3.79404]
[1727354039926,0.05204874,2636.2,2635.7,3.79404]
[1727354040135,0.1714,2636.4,2635.8,3.79389]
[1727354040136,3.96449,2636.4,2635.8,3.79389]
[1727354040291,3.79309,2636.4,2635.8,3.79378]
[1727354040622,3.79322,2636.3,2635.8,3.79378]
[1727354041033,0.696449,2636.4,2635.5,0.7507]
[1727354041202,3.79255,2636.8,2636.1,3.79335]
[1727354041393,3.79255,2636.8,2636.2,3.79332]
[1727354041594,0.07951493,2636.7,2636.1,1.141335]
[1727354041934,0.08694912,2637.0,2636.6,3.79276]
[1727354042691,0.08694912,2637.0,2636.9,4.58163]
[1727354042892,3.7914,2637.6,2637.1,3.79201]
[1727354043205,0.1714,2637.8,2636.8,3.79246]
[1727354043206,3.79166,2637.4,2636.8,3.79246]
[1727354043412,3.79183,2637.3,2636.8,3.79246]
[1727354043711,3.79166,2637.4,2636.6,3.79263]
[1727354043712,3.79191,2637.2,2636.6,3.79263]
[1727354043885,3.79191,2637.2,2636.6,7.58531]
[1727354044084,3.79191,2637.2,2636.6,3.79263]
[1727354044532,3.79175,2637.3,2636.7,3.79253]
[1727354044690,3.7914,2637.6,2636.9,3.79223]
[1727354044899,3.7914,2637.6,2636.8,3.79247]
[1727354044900,7.58341,2637.4,2636.8,3.79247]
[1727354045099,3.79169,2637.4,2636.8,3.79247]
[1727354045900,3.79222,2637.0,2636.5,0.8155]
[1727354046107,0.1714,2637.4,2636.5,0.8155]
[1727354046108,3.79197,2637.2,2636.5,4.6084]
[1727354046302,3.79197,2637.2,2636.6,3.79275]
[1727354046303,3.0,2637.1,2636.6,3.79275]
[1727354046736,3.1714,2637.4,2636.5,0.8155]
[1727354046906,3.79252,2636.8,2636.5,0.8155]
[1727354047326,3.0,2636.9,2636.1,0.8043]
[1727354047512,3.79291,2636.5,2636.1,0.8043]